{"text_format":"1","workbook":"xlsx","n_sheets":10,"sheets":["Český pohár","181603-7P","182115-7P","181803-7P","181616-7P","181617-7P","182156-7P","Members","Categories","List1"],"not_rendered":{"charts":0,"images":0,"macros":1,"external_links":0,"defined_names":1,"comments":0,"pivot_tables":0},"unopened":[],"bounds":{"document_bytes":16777216,"sheet_cells":100000,"rows_first":2000,"rows_last":500,"rows_between":2000,"halvings":0,"cell_chars":16384,"cell_head_chars":4096},"cells_cut":0,"cells_raw":0,"read":"whole","date_system":"1900"}

{"sheet":"Český pohár","index":0,"n_rows":41,"n_cols":25,"rows_kept":41,"cut":false,"hidden":false,"merged":[[3,0,3,3]]}
["7P",2018,"Pouze členi","A",null,null,null,null,"Věk min:",null,null,null,"Rok:",null,null,null,null,null,null,null,null,null,"created by: Zdeněk Vykydal"]
[7,"koeficient pro logaritmické body",null,null,null,null,null,null,"Věk max:"]
[]
["FUN - Český pohár 2018",null,null,null,187001,187009,187019,null,null,null,null,null,null,null,"Slalom I","Slalom VI","Slalom IX"]
["¨",null,null,"Poč. záv./CTL",22,18,15,null,null,null,null,null,null,null,181603,182115,181803,null,null,null,null,null,null,{"$f":"IF(N4,N4,\"\")","v":""}]
["Poř. celk.","Kat.","Reg. číslo ","Jméno","Poř.","Poř.","Poř.","Poř.","Poř.","Poř.","Poř.","Poř.","Poř.","Poř.","Body","Body","Body","Body","Body","Body","Body","Body","Body","Body","Celkem"]
[1,"1M",null,"Sladký Martin",3,1,3,null,null,null,null,null,null,null,{"$f":"IF((E7>0),ROUND((101+1000*(LOG10($E$5)-LOG10(E7)))*$A$2,0),0)","v":6764},{"$f":"IF((F7>0),ROUND((101+1000*(LOG10($F$5)-LOG10(F7)))*$A$2,0),0)","v":9494},{"$f":"IF((G7>0),ROUND((101+1000*(LOG10($G$5)-LOG10(G7)))*$A$2,0),0)","v":5600},{"$f":"IF((H7>0),ROUND((101+1000*(LOG10($H$5)-LOG10(H7)))*$A$2,0),0)","v":0},{"$f":"IF((I7>0),ROUND((101+1000*(LOG10($I$5)-LOG10(I7)))*$A$2,0),0)","v":0},{"$f":"IF((J7>0),ROUND((101+1000*(LOG10($J$5)-LOG10(J7)))*$A$2,0),0)","v":0},{"$f":"IF((K7>0),ROUND((101+1000*(LOG10($K$5)-LOG10(K7)))*$A$2,0),0)","v":0},{"$f":"IF((L7>0),ROUND((101+1000*(LOG10($L$5)-LOG10(L7)))*$A$2,0),0)","v":0},{"$f":"IF((M7>0),ROUND((101+1000*(LOG10($M$5)-LOG10(M7)))*$A$2,0),0)","v":0},{"$f":"IF((N7>0),ROUND((101+1000*(LOG10($N$5)-LOG10(N7)))*$A$2,0),0)","v":0},{"$f":"SUM(LARGE(O7:X7,1),LARGE(O7:X7,2),LARGE(O7:X7,3),LARGE(O7:X7,4))","v":21858}]
[2,"2M",null,"Zíma Jakub",null,2,1,null,null,null,null,null,null,null,0,7387,8940,0,0,0,0,0,0,0,16327]
[3,"3M",null,"Kvašnovský Michael",2,null,2,null,null,null,null,null,null,null,7997,0,6832,0,0,0,0,0,0,0,14829]
[4,"4M",null,"Raška Marek",4,5,5,null,null,null,null,null,null,null,5890,4601,4047,0,0,0,0,0,0,0,14538]
[5,"5M",null,"Neumann Lukáš",7,6,4,null,null,null,null,null,null,null,4188,4047,4725,0,0,0,0,0,0,0,12960]
[6,"1MJ",null,"Čech Petr",5,4,null,null,null,null,null,null,null,null,5211,5279,0,0,0,0,0,0,0,0,10490]
[7,"6M",null,"Malina Tomáš",1,null,null,null,null,null,null,null,null,null,10104,0,0,0,0,0,0,0,0,0,10104]
[8,"7M",null,"Štěpánek Jan",8,null,7,null,null,null,null,null,null,null,3782,0,3024,0,0,0,0,0,0,0,6806]
[9,"8M",null,"Kalabis Petr",11,7,null,null,null,null,null,null,null,null,2814,3578,0,0,0,0,0,0,0,0,6392]
[10,"9M",null,"Skřepek Jan",null,3,null,null,null,null,null,null,null,null,0,6154,0,0,0,0,0,0,0,0,6154]
[11,"10M",null,"Netík Pavel st.",null,8,9,null,null,null,null,null,null,null,0,3172,2260,0,0,0,0,0,0,0,5432]
[12,"11M",null,"Dvořák Dalibor",6,null,null,null,null,null,null,null,null,null,4657,0,0,0,0,0,0,0,0,0,4657]
[13,"12M",null,"Loužek Karel",15,null,8,null,null,null,null,null,null,null,1871,0,2618,0,0,0,0,0,0,0,4489]
[14,"2MJ",null,"Sadílek Adam",22,null,6,null,null,null,null,null,null,null,707,0,3493,0,0,0,0,0,0,0,4200]
[15,"1Ž",null,"Zídková Nadine",17,14,13,null,null,null,null,null,null,null,1491,1471,1142,0,0,0,0,0,0,0,4104]
[16,"13M",null,"Vejrosta Marek",14,12,null,null,null,null,null,null,null,null,2081,1940,0,0,0,0,0,0,0,0,4021]
[17,"4MJ",null,"Drda David",16,null,10,null,null,null,null,null,null,null,1675,0,1940,0,0,0,0,0,0,0,3615]
[18,"14M",null,"Kocman Zdeněk",9,null,null,null,null,null,null,null,null,null,3424,0,0,0,0,0,0,0,0,0,3424]
[19,"15M",null,"Diviš Ivo",13,16,null,null,null,null,null,null,null,null,2306,1065,0,0,0,0,0,0,0,0,3371]
[20,"2Ž",null,"Rašková Adéla",19,15,14,null,null,null,null,null,null,null,1153,1261,917,0,0,0,0,0,0,0,3331]
[21,"16M",null,"Kissi Róbert",10,null,null,null,null,null,null,null,null,null,3104,0,0,0,0,0,0,0,0,0,3104]
[22,"17M",null,"Kudláček Pavel ",null,9,null,null,null,null,null,null,null,null,0,2814,0,0,0,0,0,0,0,0,2814]
[23,"18M",null,"Vejrosta Vítězslav",12,null,null,null,null,null,null,null,null,null,2550,0,0,0,0,0,0,0,0,0,2550]
[24,"3Ž",null,"Žlabová Markéta",null,10,null,null,null,null,null,null,null,null,0,2494,0,0,0,0,0,0,0,0,2494]
[25,"4MJ",null,"MikuleC Martin",null,11,null,null,null,null,null,null,null,null,0,2204,0,0,0,0,0,0,0,0,2204]
[26,"19M",null,"Buráň Marek",null,13,null,null,null,null,null,null,null,null,0,1696,0,0,0,0,0,0,0,0,1696]
[27,"20M",null,"Slíva Jakub",null,null,11,null,null,null,null,null,null,null,0,0,1650,0,0,0,0,0,0,0,1650]
[27,"5MJ",null,"Netík Pavel ml.",null,18,15,null,null,null,null,null,null,null,0,707,707,0,0,0,0,0,0,0,1414]
[27,"21M",null,"Rott Jan",null,null,12,null,null,null,null,null,null,null,0,0,1385,0,0,0,0,0,0,0,1385]
[27,"4Ž",null,"Kizeková Patricie",18,null,null,null,null,null,null,null,null,null,1317,0,0,0,0,0,0,0,0,0,1317]
[27,"22M",null,"Jeřábek Stanislav",20,null,null,null,null,null,null,null,null,null,997,0,0,0,0,0,0,0,0,0,997]
[27,"23M",null,"Lenz David",null,17,null,null,null,null,null,null,null,null,0,881,0,0,0,0,0,0,0,0,881]
[27,"5Ž",null,"Hendrychová Jana",21,null,null,null,null,null,null,null,null,null,848,0,0,0,0,0,0,0,0,0,848]
[28,null,null,null,null,null,null,null,null,null,null,null,null,null,0,0,0,0,0,0,0,0,0,0,{"$f":"SUM(LARGE(O40:X40,1),LARGE(O40:X40,2),LARGE(O40:X40,3))","v":0}]
[29,null,null,null,null,null,null,null,null,null,null,null,null,null,0,0,0,0,0,0,0,0,0,0,{"$f":"SUM(LARGE(O41:X41,1),LARGE(O41:X41,2),LARGE(O41:X41,3))","v":0}]

{"sheet":"181603-7P","index":1,"n_rows":12,"n_cols":9,"rows_kept":12,"cut":false,"hidden":false,"merged":[]}
[null,"Cena YCN"]
[1,1,"CZE 777","7019-0303","Zíma Jakub",1989,"1 6* 1 2 ",4,7997]
[2,2,"CZE 4","1126-0059","Sladký Martin",1976,"5* 1 4 1 ",6,5890]
[3,3,"CZE 177","1126-0005","Neumann Lukáš",1972,"2 2 5* 3 ",7,4657]
[4,4,"CZE 73","1705-0003","Štěpánek Jan",1973,"8* 3 2 5 ",10,3782]
[5,5,"CZE 76","7019-0076","Raška Marek",1971,"4 5 6* 4 ",13,3104]
[6,6,"CZE 1","1614-0006","Kir Milan",1977,"3 4 8 DNS* ",15,2550]
[7,7,"CZE 116","2001-0104","Netík Pavel",1973,"6 7* 7 6 ",19,2081]
[8,8,"CZE 34","1402-0398","Loužek Karel",1963,"7 8 9* 7 ",22,1675]
[9,9,"CZE 7","7019-0309","Toth Martin",1970,"9 10 3 DNF* ",22,1317]
[10,10,"CZE 49","1705-0085","Sadílek Adam",2002,"10* 9 10 8 ",27,997]
[11,11,"CZE 1116","2001-0225","Netík Pavel",1999,"11* 11 11 9 ",31,707]

{"sheet":"182115-7P","index":2,"n_rows":1,"n_cols":2,"rows_kept":1,"cut":false,"hidden":false,"merged":[]}
[null,"Věstonická Venuše"]

{"sheet":"181803-7P","index":3,"n_rows":10,"n_cols":9,"rows_kept":10,"cut":false,"hidden":false,"merged":[]}
[null,"Pohár Rozkoše"]
[1,1,"CZE 777","7019-0303","Zíma Jakub",1989,"1 1 1 ",3,7387]
[2,2,"CZE 4","7019-0024","Sladký Martin",1976,"2 4 3 ",9,5279]
[3,3,"CZE 34","1402-0398","Loužek Karel",1963,"4 2 4 ",10,4047]
[4,4,"CZE 76","7019-0076","Raška Marek",1971,"3 DNF 2 ",15,3172]
[5,5,"CZE 173","7019-0389","Zidková Nadine",1973,"6 3 7 ",16,2494]
[6,6,"CZE 73","1705-0003","Štěpánek Jan",1973,"5 5 6 ",16,1940]
[7,7,"CZE 17","1126-0054","Hrdina Patrik",1967,"DNF 6 5 ",21,1471]
["X",8,"CZE 49","1705-0100","Sadílek Pavel",1974,"7 DNF 9 ",26,1065]
[8,9,"CZE 7","7019-0309","Toth Martin",1970,"DNC DNC 8 ",28,707]

{"sheet":"181616-7P","index":4,"n_rows":9,"n_cols":9,"rows_kept":9,"cut":false,"hidden":false,"merged":[]}
[null,"Nechranická buchta"]
[1,1,"CZE 777","7019-0303","Zíma Jakub",1989,"1 1 1 2* ",3,11045]
[2,2,"CZE 4","7019-0024","Sladký Martin",1976,"2 2 2 4* ",6,7734]
[3,3,"CZE 7","7019-0309","Toth Martin",1970,"6* 3 3 1 ",7,5797]
[4,4,"CZE 73","1705-0003","Štěpánek Jan",1973,"3 4 5* 3 ",10,4422]
[5,5,"CZE 34","1402-0398","Loužek Karel",1963,"4 5* 4 5 ",13,3356]
[6,6,"CZE 49","1705-0085","Sadílek Adam",2002,"5 6* 6 6 ",17,2485]
[7,7,"CZE 1116","2001-0225","Netík Pavel",1999,"7 7 7 DNC* ",21,1749]
[8,8,"CZE 76","7019-0076","Raška Marek",1971,"DNC* DNC DNC DNF ",27,1111]

{"sheet":"181617-7P","index":5,"n_rows":11,"n_cols":9,"rows_kept":11,"cut":false,"hidden":false,"merged":[]}
[null,"MČR Bic/Rac"]
[1,1,"CZE 130","1302-0039","Lavický Karel",1985,"1 1 2* 1 2 ",5,13212]
[2,2,"CZE 777","7019-0303","Zíma Jakub",1989,"2 3* 1 2 1 ",6,9600]
[3,3,"CZE 17","1126-0054","Hrdina Patrik",1967,"3 2 5* 3 3 ",11,7487]
[4,4,"CZE 73","1705-0003","Štěpánek Jan",1973,"7* 4 4 5 4 ",17,5987]
[5,5,"CZE 4","1126-0059","Sladký Martin",1976,"8* 7 3 4 5 ",19,4824]
[6,6,"CZE 34","1402-0398","Loužek Karel",1963,"4 6 6 8* 6 ",22,3874]
[7,7,"CZE 76","7019-0076","Raška Marek",1971,"5 5 7 DNF* DNF ",28,3071]
[8,8,"CZE 7","7019-0309","Toth Martin",1970,"6 8 DNF* 6 9 ",29,2375]
[9,9,"CZE 49","1705-0085","Sadílek Adam",2002,"9* 9 8 7 7 ",31,1761]
[10,10,"CZE 1116","2001-0225","Netík Pavel",1999,"10 DNF* 9 9 8 ",36,1212]

{"sheet":"182156-7P","index":6,"n_rows":10,"n_cols":2,"rows_kept":10,"cut":false,"hidden":false,"merged":[]}
[null,"Czech Supercup"]
[1]
[2]
[3]
[4]
[5]
[6]
[7]
[8]
[9]

{"sheet":"Members","index":7,"n_rows":91,"n_cols":3,"rows_kept":91,"cut":false,"hidden":false,"merged":[]}
[4,"Sladký Martin","M"]
[5,"Kučera Petr sen.","M"]
[7,"Toth Martin","M"]
[8,"Mielec Lubomír","M"]
[10,"Horký Adam","M"]
[11,"Altmann Tomáš","M"]
[15,"Kučera Petr jun.","M"]
[16,"Slíva Matěj","M"]
[17,"Hrdina Patrik","M"]
[19,"Hrubý Pavel","M"]
[21,"Pospíšil Martin","M"]
[22,"Slíva Martin","M"]
[24,"Hnitka Martin","M"]
[25,"Hrubý Roman","M"]
[26,"Slívová Jana","F"]
[31,"Král Jiří","M"]
[34,"Loužek Karel","M"]
[35,"Mařík Kristian","M"]
[37,"Šplíchal Filip","M"]
[39,"Šplíchal Jiří","M"]
[40,"Štěpánský Adam","M"]
[41,"Horáček Jonáš","M"]
[45,"Vrána Petr","M"]
[48,"Čech Petr","M"]
[49,"Sadílek Adam","M"]
[50,"Mikulec Martin","M"]
[51,"Šeliga Teodor","M"]
[53,"Štrambach Ladislav","M"]
[58,"Žlabová Markéta","F"]
[61,"Haubold Petr","M"]
[63,"Drda David","M"]
[71,"Himmelová Klára","F"]
[73,"Štěpánek Jan","M"]
[74,"Neckářová Martina ","F"]
[76,"Raška Marek","M"]
[77,"Rašková Adéla","F"]
[79,"Himmel Jiří","M"]
[80,"Sadílková Nela","F"]
[81,"Himmel Jiří","M"]
[82,"Parchomenko Ondřej","M"]
[85,"Kroupa Štěpán","M"]
[86,"Mrůzek Pavel","M"]
[87,"Lojínová Alexandra","F"]
[88,"Štěpánková Markéta","F"]
[89,"Švíková Katrina","F"]
[90,"Hykrdová Markéta","F"]
[91,"Chalupníková Klára","F"]
[93,"Hasman Radim","M"]
[95,"Provazník Samuel","M"]
[98,"Švíková Barbora","F"]
[99,"Dvořák Rudolf","M"]
[101,"Koblasa Stanislav","M"]
[110,"Kamenský Radim","M"]
[113,"Kamenský Pavel","M"]
[116,"Netík Pavel","M"]
[119,"Altmannová Kateřina","F"]
[125,"Hrubá Dagmar","F"]
[138,"Hromádka Josef","M"]
[141,"Sehnal Pavel","M"]
[147,"Sehnal Pavel","M"]
[173,"Zidková Nadine","F"]
[178,"Kvašnovský Michael","M"]
[195,"Dolejš Rudolf","M"]
[211,"Diviš Lukáš","M"]
[251,"Hrubá Martina","F"]
[289,"Piňosová Kristýna","F"]
[333,"Myška Filip","M"]
[338,"Myšková Veronika","F"]
[714,"Samcová Klára","F"]
[741,"Rais Michal","M"]
[742,"Kříž Jan","M"]
[744,"Říčanová Nicol","F"]
[747,"Říčan Jaroslav","M"]
[777,"Zíma Jakub","M"]
[781,"Skřepek Šimon","M"]
[783,"Tlapák Vojta","M"]
[784,"Nevolöš Adam","M"]
[785,"Tlapáková Zuzana","F"]
[786,"Vaszi Mikuláš","M"]
[787,"Neveloš Tibor","M"]
[788,"Muller Ondřej","M"]
[789,"Nevelöš Jan","M"]
[814,"Švec Ladislav","M"]
[1116,"Netík Pavel","M"]
[2403,"Raška Ondřej","M"]
[null,"Martinová Nicola","F"]
[null,"Sehnalová Tereza","F"]
[null,"Skřepek Jan","M"]
[null,"Neumann Lukáš","M"]
[null,"Kir Milan","M"]
[null,"Lavický Karel","M"]

{"sheet":"Categories","index":8,"n_rows":6,"n_cols":8,"rows_kept":6,"cut":false,"hidden":false,"merged":[]}
["Muži","M","Ženy","F",null,null,"Pořadí"]
["Min","Max","Min","Max","Zkratka","Kategorie"]
[0,35,0,30,"-","-",4,13]
[36,45,31,40,"M","Master",6,15]
[46,55,41,50,"GM","Grand Master",5,10]
[56,1000,51,1000,"V","Veteran",0,0]

{"sheet":"List1","index":9,"n_rows":163,"n_cols":4,"rows_kept":163,"cut":false,"hidden":false,"merged":[]}
["Cislo","Jméno","Klub","Člen"]
[1,"k propůjčení","ČWA Lavický Karel"]
[2,"Vavřík Petr","Santi Ostrava"]
[3,"Rott Jan ","YC Plzeň","ano"]
[4,"Sladký Martin ml.","ČWA","ano"]
[5,"Kučera Petr","Rapid Brno","ano"]
[6,"Jakub Slíva","YC Nechranice","ano"]
[7,"Toth Martin","ČWA","ano"]
[8,"Mielec Lubomír sen.","SKP Ostrava","ano"]
[9,"Mielec lubomír jun.","SKP Ostrava"]
[10,"Horký Adam","ČWA","ano"]
[11,"Altman Tomáš","SSTK Plzeň","ano"]
[12,"Diviš Ivo","YC Brno"]
[13,"Koblasa David","Loko Cheb","ano"]
[14,"Koblasa Lukáš","Loko Cheb"]
[15,"Kučera Petr jun.","Rapid Brno","ano"]
[16,"Slíva Martin","ČWA","ano"]
[17,"Hrdina Patrik","ASK","ano"]
[19,"Hrubý Pavel","ČWA","ano"]
[20,"Markýzo"]
[21,"Pospíšil Martin","Rapid Brno","ano"]
[22,"Slíva Martin","ČWA","ano"]
[23,"Kovařík Dominik","ČWA"]
[24,"Hnitka Martin","YC Nechranice","ano"]
[25,"Hrubý Roman","Loko Cheb","ano"]
[26,"Slívová Jana","YC Nechranice","ano"]
[27,"Raška Zdeněk","TJ Baník Karviná"]
[29,"König Josef","Loko  Plzeň","ano"]
[30,"Vykydal Jaroslav","Rapid Brno","ano"]
[31,"Král Jiří","HTJ Odra Ostrava ","ano"]
[32,"Stránký Martin","Loko Cheb"]
[33,"Rott Petr","YC Plzeň","ano"]
[34,"Loužek Karel","YC Plzeň","ano"]
[35,"Mařík Kristian","Delfín Jablonec","ano"]
[36,"Šplíchal Jiří sen.","YC Plzeň"]
[37,"Šplíchal Filip.","YC Plzeň","ano"]
[38,"Vaněk Václav","Slovan ML","ano"]
[39,"Šplíchal Jiří jun","YC Plzeň","ano"]
[40,"Štěpánský Adam","TJ Slavia","ano"]
[41,"Horáček Jonáš","Delfín Jablonec","ano"]
[42,"Hanzi Shafer","ČWA","ano"]
[43,"Roušal Jar."]
[44,"Vránová Markéta","Rapid Brno","ano"]
[45,"Vrána Petr","rapid Brno","ano"]
[46,"Straček Oldřich","Ostrava"]
[47,"TJ Rapid","TJ Rapid"]
[48,"Čech Petr","Delfín Jablonec","ano"]
[49,"Sadílek Adam","Delfín Jablonec","ano"]
[50,"Mikulec Martin","TJ Rapid","ano"]
[51,"Novotná Eva","ČWA"]
[52,"Juptner Patrik","Vodní sp. Brno"]
[53,"Štrambach Ladislav","MEZ Mohelnice","ano"]
[54,"Fanta Miroslav","TJ L SP Brno"]
[55,"Kudláček Pavel","ČWA","ano"]
[57,"Ouřada Jaroslav","Loko Cheb","ano"]
[58,"Žlabová Markéta","ČWA","ano"]
[59,"Hrdina Pavelk","ASK","ano"]
[60,"Hrdinová Patricie","ASK","ano"]
[61,"Haubold Petr","Delfín Jablonec","ano"]
[62,"Kocálek Zdeněk","YC Nové Sedlo"]
[63,"Drda David","Delfín Jablonec","ano"]
[65,"Rašovský Jar.","Rapid Brno","ano"]
[66,"Ovsík Martin","ČWA","ano"]
[67,"Marek Michal","TJ Rapid","ano"]
[68,"Hartman Pavel","ČWA","ano"]
[69,"Šlechta Jiří","ČWA"]
[70,"ŠebestaLibor","ČWA","ano"]
[71,"Himmel Klára","YC Nechranice","ano"]
[72,"Dvořák Dalibor","ČWA","ano"]
[73,"Štěpánek Jan","Delfín Jablonec","ano"]
[74,"Neckář ","ČWA"]
[75,"JK Plzeň","JK Plzeň"]
[76,"Raška Marek","ČWA","ano"]
[77,"Rašková Adéla","ČWA","ano"]
[78,"Skřepek Jan","Rapid Brno","ano"]
[79,"Himmel Jiří","YC Nechranice","ano"]
[80,"Sadílková Nela","Delfín Jablonec","ano"]
[81,"Himmel Jiří jun","YC Nechranice","ano"]
[83,"Nejtek Petr","Loko Cheb"]
[85,"Kroupa Štěpán","Delfín Jablonec","ano"]
[86,"Mrůzek Pavel","JC Regent","ano"]
[88,"Štěpánková Markéta","Delfín Jablonec","ano"]
[89,"Švíková Katrina","Cere","ano"]
[92,"Podzimek Petr","Loko Cheb"]
[94,"Novotný Antonín","Rapid Brno"]
[96,"Čech Milan","ČWA"]
[99,"Dvořák Rudolf","Cere","ano"]
[101,"Koblasa Stanislav","Loko Cheb","ano"]
[104,"Čech Petr","ČWA","ano"]
[105,"Škola Jaroslav","Loko Cheb"]
[109,"Malina Tomáš","identiti nechr","ano"]
[110,"Kamenský Radim","YC Velké Dářko","ano"]
[111,"Kalabis Petr","Rapid Brno","ano"]
[113,"Kamenský Pavel","YC Velké Dářko","ano"]
[114,"Nejtek Petr","Loko Cheb"]
[115,"Škola Jaroslav ml.","Loko Cheb"]
[116,"Netík Pavel","ŽĎAS Jihlava","ano"]
[117,"Urbánek Zdeněk","MEZ Mohelnice"]
[118,"Uldrych Josef "]
[119,"Altmanová Kat","SSTK Plzeň","ano"]
[120,"Hrubý Jiří","JC PlzeŇ","ano"]
[121,"Dvořáková Kateřina","Loko Cheb"]
[123,"Toupal Jan","ČWA","ano"]
[124,"Hauer Radim","PLK"]
[125,"Hrubá Dagmar","Loko Cheb","ano"]
[126,"Dvořák Michal","ČWA","ano"]
[128,"Dvořák Marek",null,"ano"]
[130,"Lavický Karel","DIM Bezdrev","ano"]
[137,"Motz Daniel","ČWA","ano"]
[138,"Hromádka Josef","Loko Cheb","ano"]
[141,"Sehnal Pavel","ČWA","ano"]
[144,"Haltmarová Dominika","ČWA","ano"]
[147,"Sehnal Pavel jun.","ČWA","ano"]
[162,"Kment Libor","ČWA","ano"]
[165,"Škola Jan","Loko Cheb"]
[166,"Vejrek Miloš","JC Regent","ano"]
[171,"Mareš jakub","ČWA","ano"]
[172,"Kocman Zdeněk"]
[177,"Neumann Lukáš","YC Rodop","ano"]
[178,"Kvašnovský Michael","ČWA","ano"]
[191,"Hrubá Andrea","ČWA"]
[195,"Dolejš Rudolf","ČWA","ano"]
[202,"Bodlák Pavel",null,"ano"]
[205,"Ehl Vladimír","WCVD"]
[206,"Haken Vladimír","WCVD"]
[208,"Ševčík Martin","WCVD"]
[211,"Diviš Lukáš","YC Brno","ano"]
[212,"Pelikán Martin","Rapid Brno"]
[222,"Vazač Jan","ČWA","ano"]
[251,"Hrubá Martina","YC Velké Dářko","ano"]
[331,"Rott Jakub","Poseidon Plzeň"]
[332,"Hrubý Kryštof","ČWA","ano"]
[333,"Myška Filip","identiti nechr","ano"]
[404,"Hala Václav","ČWA","ano"]
[480,"Šmíd Zdeněk","Mez  Mohelnice","ano"]
[534,"Valenta Jan","ČWA","ano"]
[612,"Modráčková Jana","ČWA","ano"]
[711,"Toth ml.","ČWA"]
[744,"Říčanová Nicol","YC SK Štětí","ano"]
[771,"Štantejský Jan","ČWA","ano"]
[777,"Zíma Jakub","ČWA","ano"]
[781,"Skřepek Šimon","Rapid Brno","ano"]
[784,"Nevološ Adam","YC SK Štětí","ano"]
[786,"Beerová Eliška","YC SK Štětí","ano"]
[787,"Neveloš Tibor","YC SK Štětí","ano"]
[788,"Muller Ondřej","YC SK Štětí","ano"]
[814,"Švec Ladislav","Č. Budějovice","ano"]
[888,"Hulinský Martin","ČWA","ano"]
[911,"Chalupníková Kristýna"]
[1006,"Řehák Pavel ","ČWA"]
[1111,"Kir","identiti nechr","ano"]
[1116,"Netík Pavel jun","YC Velké Dářko","ano"]
[1117,"Mika Radek",null,"ano"]
[1534,"Šmídová Pavla","ČWA","ano"]
[2403,"Raška Ondřej","ČWA","ano"]
[2222,"Holý Marek",null,"ano"]
[null,"Ledecká Ester","ČWA"]
[null,"Martinova Nicola","ČWA","ano"]
[null,"Mikulec Martin","TJ Rapid","ano"]
[null,"Kaš Petr","TJ Rapid","ano"]
[null,"Sehnalová Teraza",null,"ano"]
[null,"Marečková lenka",null,"ano"]
[null,"Rašková Kateřina",null,"ano"]